[Event "Titled Tuesday Blitz November 15 Late 2022"]
[White "Castella Garcia, Fausto"]
[Black "Forgacs, Attila Jr."]
[WhiteFideId "3501922"]
[BlackFideId "773654"]
[WhiteElo "2245"]
[BlackElo "2168"]
[Result "1-0"]
[Round "10"]
[TimeControl "180+1"]
[Date "2022.11.16"]
[WhiteClock "0:01:15"]
[BlackClock "0:00:03"]

1. e4 {[%clk 0:03:00]}  e5 {[%clk 0:02:58]} 2. Nf3 {[%clk 0:02:59]}  Nc6 {[%clk 0:02:58]} 3. Bb5 {[%clk 0:02:59]}  a6 {[%clk 0:02:58]} 4. Ba4 {[%clk 0:02:59]}  Nf6 {[%clk 0:02:57]} 5. d4 {[%clk 0:02:59]}  exd4 {[%clk 0:02:57]} 6. O-O {[%clk 0:03:00]}  Be7 {[%clk 0:02:54]} 7. Re1 {[%clk 0:02:59]}  d6 {[%clk 0:02:41]} 8. Nxd4 {[%clk 0:02:58]}  Bd7 {[%clk 0:02:40]} 9. Nxc6 {[%clk 0:02:58]}  Bxc6 {[%clk 0:02:38]} 10. Bxc6+ {[%clk 0:02:57]}  bxc6 {[%clk 0:02:39]} 11. Nc3 {[%clk 0:02:58]}  O-O {[%clk 0:02:38]} 12. Ne2 {[%clk 0:02:58]}  Nxe4 {[%clk 0:02:36]} 13. Nd4 {[%clk 0:02:57]}  d5 {[%clk 0:02:24]} 14. Nxc6 {[%clk 0:02:55]}  Qd6 {[%clk 0:02:15]} 15. Qxd5 {[%clk 0:02:41]}  Bh4 {[%clk 0:00:54]} 16. Qxe4 {[%clk 0:02:33]}  Qf6 {[%clk 0:00:44]} 17. Ne7+ {[%clk 0:02:20]}  Kh8 {[%clk 0:00:40]} 18. Nf5 {[%clk 0:02:20]}  Bg5 {[%clk 0:00:29]} 19. Bxg5 {[%clk 0:02:11]}  Qxg5 {[%clk 0:00:30]} 20. Rad1 {[%clk 0:02:01]}  Qf6 {[%clk 0:00:17]} 21. Qe5 {[%clk 0:01:59]}  Qg6 {[%clk 0:00:14]} 22. g3 {[%clk 0:01:56]}  f6 {[%clk 0:00:15]} 23. Qf4 {[%clk 0:01:53]}  Rae8 {[%clk 0:00:13]} 24. h4 {[%clk 0:01:49]}  Qf7 {[%clk 0:00:12]} 25. b3 {[%clk 0:01:47]}  a5 {[%clk 0:00:12]} 26. c4 {[%clk 0:01:41]}  a4 {[%clk 0:00:11]} 27. Rxe8 {[%clk 0:01:39]}  Rxe8 {[%clk 0:00:11]} 28. Kg2 {[%clk 0:01:35]}  g6 {[%clk 0:00:10]} 29. Nh6 {[%clk 0:01:33]}  Qf8 {[%clk 0:00:10]} 30. Rd7 {[%clk 0:01:29]}  Re7 {[%clk 0:00:08]} 31. Rd8 {[%clk 0:01:16]}  Qxd8 {[%clk 0:00:02]} 32. Qxf6+ {[%clk 0:01:16]}  Rg7 {[%clk 0:00:03]} 33. Qxd8+ {[%clk 0:01:15]} 1-0


[Site "https://www.chess.com"]

[Event "Titled Tuesday Blitz November 15 Late 2022"]
[White "Deac, Bogdan-Daniel"]
[Black "Gubajdullin, Alexei"]
[WhiteFideId "1226380"]
[BlackFideId "4141202"]
[WhiteElo "2648"]
[BlackElo "2230"]
[Result "1-0"]
[Round "10"]
[TimeControl "180+1"]
[Date "2022.11.15"]
[WhiteClock "0:00:33"]
[BlackClock "0:00:06"]

1. b3 {[%clk 0:03:00]}  Nf6 {[%clk 0:02:57]} 2. Bb2 {[%clk 0:03:01]}  g6 {[%clk 0:02:58]} 3. Nf3 {[%clk 0:03:01]}  Bg7 {[%clk 0:02:57]} 4. g3 {[%clk 0:03:01]}  O-O {[%clk 0:02:57]} 5. Bg2 {[%clk 0:03:02]}  d6 {[%clk 0:02:58]} 6. d4 {[%clk 0:03:02]}  a5 {[%clk 0:02:47]} 7. O-O {[%clk 0:02:58]}  a4 {[%clk 0:02:47]} 8. b4 {[%clk 0:02:58]}  Ne4 {[%clk 0:02:30]} 9. c4 {[%clk 0:02:51]}  c6 {[%clk 0:02:21]} 10. Qc2 {[%clk 0:02:41]}  d5 {[%clk 0:02:17]} 11. Nfd2 {[%clk 0:02:35]}  Nxd2 {[%clk 0:02:01]} 12. Nxd2 {[%clk 0:02:36]}  a3 {[%clk 0:01:59]} 13. Bc3 {[%clk 0:02:35]}  Be6 {[%clk 0:01:51]} 14. c5 {[%clk 0:02:34]}  Na6 {[%clk 0:01:48]} 15. Nb3 {[%clk 0:02:20]}  Nc7 {[%clk 0:01:47]} 16. Na5 {[%clk 0:02:20]}  Nb5 {[%clk 0:01:44]} 17. e3 {[%clk 0:02:19]}  Qc8 {[%clk 0:01:31]} 18. Rfe1 {[%clk 0:02:15]}  Bf5 {[%clk 0:01:28]} 19. Qd2 {[%clk 0:02:15]}  Re8 {[%clk 0:01:22]} 20. Rad1 {[%clk 0:02:14]}  Nxc3 {[%clk 0:01:11]} 21. Qxc3 {[%clk 0:02:14]}  e5 {[%clk 0:01:12]} 22. Nb3 {[%clk 0:02:01]}  Qb8 {[%clk 0:01:07]} 23. Bf1 {[%clk 0:02:00]}  b6 {[%clk 0:01:02]} 24. Rc1 {[%clk 0:01:53]}  bxc5 {[%clk 0:01:00]} 25. Qxc5 {[%clk 0:01:40]}  Rc8 {[%clk 0:00:58]} 26. Qc3 {[%clk 0:01:36]}  Bf8 {[%clk 0:00:46]} 27. Nc5 {[%clk 0:01:35]}  exd4 {[%clk 0:00:39]} 28. exd4 {[%clk 0:01:29]}  Qb6 {[%clk 0:00:39]} 29. Bd3 {[%clk 0:01:26]}  Bh3 {[%clk 0:00:37]} 30. Rb1 {[%clk 0:01:23]}  Rcb8 {[%clk 0:00:36]} 31. Rb3 {[%clk 0:01:23]}  Qa7 {[%clk 0:00:35]} 32. Rc1 {[%clk 0:01:13]}  Re8 {[%clk 0:00:33]} 33. Qd2 {[%clk 0:01:12]}  h5 {[%clk 0:00:31]} 34. Bf1 {[%clk 0:01:10]}  Bf5 {[%clk 0:00:28]} 35. Rcc3 {[%clk 0:01:09]}  Kh7 {[%clk 0:00:26]} 36. h3 {[%clk 0:01:08]}  Bh6 {[%clk 0:00:25]} 37. Qd1 {[%clk 0:01:07]}  Bg7 {[%clk 0:00:23]} 38. g4 {[%clk 0:01:02]}  hxg4 {[%clk 0:00:23]} 39. hxg4 {[%clk 0:01:03]}  Bc8 {[%clk 0:00:23]} 40. Re3 {[%clk 0:00:56]}  Rxe3 {[%clk 0:00:18]} 41. Rxe3 {[%clk 0:00:57]}  Qb6 {[%clk 0:00:17]} 42. Qf3 {[%clk 0:00:37]}  Ra7 {[%clk 0:00:13]} 43. Qh1+ {[%clk 0:00:34]}  Kg8 {[%clk 0:00:10]} 44. Re8+ {[%clk 0:00:34]}  Bf8 {[%clk 0:00:06]} 45. Qh6 {[%clk 0:00:33]} 1-0


[Site "https://www.chess.com"]

[Event "Titled Tuesday Blitz November 15 Late 2022"]
[White "Dzierzak, Radoslaw"]
[Black "Sattarov, Bobir"]
[WhiteFideId "1161407"]
[BlackFideId "14203081"]
[WhiteElo "2111"]
[BlackElo "2354"]
[Result "0-1"]
[Round "10"]
[TimeControl "180+1"]
[Date "2022.11.16"]
[WhiteClock "0:00:08"]
[BlackClock "0:02:09"]

1. e4 {[%clk 0:03:00]}  e5 {[%clk 0:02:56]} 2. Nf3 {[%clk 0:03:01]}  Nc6 {[%clk 0:02:55]} 3. Bc4 {[%clk 0:03:01]}  Bc5 {[%clk 0:02:55]} 4. O-O {[%clk 0:03:01]}  d6 {[%clk 0:02:54]} 5. c3 {[%clk 0:02:59]}  Qf6 {[%clk 0:02:55]} 6. b4 {[%clk 0:02:44]}  Bb6 {[%clk 0:02:54]} 7. b5 {[%clk 0:02:42]}  Na5 {[%clk 0:02:52]} 8. Be2 {[%clk 0:02:41]}  Ne7 {[%clk 0:02:51]} 9. d4 {[%clk 0:02:24]}  h6 {[%clk 0:02:51]} 10. h3 {[%clk 0:01:56]}  O-O {[%clk 0:02:50]} 11. Bb2 {[%clk 0:01:54]}  Ng6 {[%clk 0:02:50]} 12. c4 {[%clk 0:01:50]}  Be6 {[%clk 0:02:48]} 13. c5 {[%clk 0:01:39]}  dxc5 {[%clk 0:02:48]} 14. dxe5 {[%clk 0:01:36]}  Qe7 {[%clk 0:02:47]} 15. Nc3 {[%clk 0:01:31]}  Rfd8 {[%clk 0:02:46]} 16. Nd5 {[%clk 0:01:29]}  Qe8 {[%clk 0:02:44]} 17. Qc2 {[%clk 0:01:12]}  c6 {[%clk 0:02:44]} 18. Nxb6 {[%clk 0:00:46]}  axb6 {[%clk 0:02:45]} 19. bxc6 {[%clk 0:00:46]}  Nxc6 {[%clk 0:02:38]} 20. Rfd1 {[%clk 0:00:38]}  Nb4 {[%clk 0:02:34]} 21. Qc3 {[%clk 0:00:24]}  Qc6 {[%clk 0:02:30]} 22. Nd2 {[%clk 0:00:15]}  Nf4 {[%clk 0:02:20]} 23. Bf1 {[%clk 0:00:15]}  Nbd3 {[%clk 0:02:12]} 24. Nc4 {[%clk 0:00:08]}  Bxc4 {[%clk 0:02:09]} 0-1


[Site "https://www.chess.com"]

[Event "Titled Tuesday Blitz November 15 Late 2022"]
[White "Estrada Nieto, Julian"]
[Black "Maksimovic, Bojan"]
[WhiteFideId "5101018"]
[BlackFideId "14408120"]
[WhiteElo "2221"]
[BlackElo "2447"]
[Result "0-1"]
[Round "10"]
[TimeControl "180+1"]
[Date "2022.11.15"]
[WhiteClock "0:00:03"]
[BlackClock "0:00:46"]

1. e4 {[%clk 0:03:00]}  c5 {[%clk 0:02:59]} 2. Nf3 {[%clk 0:03:01]}  e6 {[%clk 0:02:59]} 3. c3 {[%clk 0:03:00]}  d5 {[%clk 0:02:59]} 4. exd5 {[%clk 0:03:00]}  Qxd5 {[%clk 0:03:00]} 5. d4 {[%clk 0:03:01]}  Nf6 {[%clk 0:02:57]} 6. Na3 {[%clk 0:03:00]}  Nc6 {[%clk 0:02:56]} 7. Be3 {[%clk 0:02:55]}  cxd4 {[%clk 0:02:56]} 8. Nb5 {[%clk 0:02:54]}  Qd8 {[%clk 0:02:56]} 9. Nbxd4 {[%clk 0:02:54]}  Nxd4 {[%clk 0:02:55]} 10. Bxd4 {[%clk 0:02:53]}  Be7 {[%clk 0:02:55]} 11. Bd3 {[%clk 0:02:53]}  O-O {[%clk 0:02:55]} 12. O-O {[%clk 0:02:53]}  Bd7 {[%clk 0:02:55]} 13. Ne5 {[%clk 0:02:49]}  Qc7 {[%clk 0:02:55]} 14. Qe2 {[%clk 0:02:43]}  Rad8 {[%clk 0:02:45]} 15. Rad1 {[%clk 0:02:39]}  Bc5 {[%clk 0:02:44]} 16. Bc2 {[%clk 0:02:27]}  a6 {[%clk 0:02:33]} 17. Bxc5 {[%clk 0:02:21]}  Qxc5 {[%clk 0:02:34]} 18. Rd4 {[%clk 0:02:20]}  Bb5 {[%clk 0:02:29]} 19. Qd2 {[%clk 0:01:55]}  Rxd4 {[%clk 0:02:12]} 20. cxd4 {[%clk 0:01:55]}  Qd6 {[%clk 0:02:11]} 21. Rd1 {[%clk 0:01:51]}  Rd8 {[%clk 0:02:10]} 22. h3 {[%clk 0:01:46]}  Be8 {[%clk 0:02:07]} 23. Qa5 {[%clk 0:01:33]}  Rc8 {[%clk 0:02:04]} 24. Bb3 {[%clk 0:01:31]}  Bb5 {[%clk 0:01:45]} 25. Qd2 {[%clk 0:01:22]}  Bc6 {[%clk 0:01:42]} 26. Nxc6 {[%clk 0:01:13]}  bxc6 {[%clk 0:01:42]} 27. Bc4 {[%clk 0:01:11]}  Ra8 {[%clk 0:01:27]} 28. Qa5 {[%clk 0:01:05]}  h6 {[%clk 0:01:27]} 29. Qc5 {[%clk 0:00:57]}  Qd7 {[%clk 0:01:19]} 30. Qe5 {[%clk 0:00:53]}  Nd5 {[%clk 0:01:13]} 31. Rd3 {[%clk 0:00:50]}  Qc7 {[%clk 0:01:06]} 32. Qxc7 {[%clk 0:00:37]}  Nxc7 {[%clk 0:01:07]} 33. Rb3 {[%clk 0:00:31]}  Nb5 {[%clk 0:01:07]} 34. Bxb5 {[%clk 0:00:31]}  axb5 {[%clk 0:01:07]} 35. a3 {[%clk 0:00:30]}  Ra4 {[%clk 0:01:07]} 36. Rc3 {[%clk 0:00:30]}  Rxd4 {[%clk 0:01:05]} 37. Rxc6 {[%clk 0:00:29]}  Rd1+ {[%clk 0:01:06]} 38. Kh2 {[%clk 0:00:29]}  Rd2 {[%clk 0:01:07]} 39. b4 {[%clk 0:00:25]}  Rxf2 {[%clk 0:01:06]} 40. Rc8+ {[%clk 0:00:25]}  Kh7 {[%clk 0:01:06]} 41. Rc5 {[%clk 0:00:24]}  Ra2 {[%clk 0:01:03]} 42. Rxb5 {[%clk 0:00:23]}  Rxa3 {[%clk 0:01:03]} 43. Rb7 {[%clk 0:00:23]}  Kg6 {[%clk 0:01:03]} 44. g4 {[%clk 0:00:21]}  Rb3 {[%clk 0:01:03]} 45. b5 {[%clk 0:00:20]}  f5 {[%clk 0:00:59]} 46. gxf5+ {[%clk 0:00:17]}  exf5 {[%clk 0:01:00]} 47. b6 {[%clk 0:00:15]}  Kf6 {[%clk 0:00:59]} 48. h4 {[%clk 0:00:15]}  g6 {[%clk 0:00:55]} 49. Kg2 {[%clk 0:00:14]}  Ke5 {[%clk 0:00:55]} 50. Rb8 {[%clk 0:00:13]}  Kf4 {[%clk 0:00:52]} 51. b7 {[%clk 0:00:08]}  g5 {[%clk 0:00:52]} 52. h5 {[%clk 0:00:03]}  Rb2+ {[%clk 0:00:51]} 53. Kf1 {[%clk 0:00:03]}  g4 {[%clk 0:00:52]} 54. Rh8 {[%clk 0:00:02]}  Rxb7 {[%clk 0:00:51]} 55. Rxh6 {[%clk 0:00:03]}  Kf3 {[%clk 0:00:51]} 56. Ke1 {[%clk 0:00:03]}  f4 {[%clk 0:00:49]} 57. Kd2 {[%clk 0:00:03]}  g3 {[%clk 0:00:49]} 58. Rg6 {[%clk 0:00:03]}  g2 {[%clk 0:00:45]} 59. h6 {[%clk 0:00:03]}  Rh7 {[%clk 0:00:45]} 60. Kd3 {[%clk 0:00:03]}  Rxh6 {[%clk 0:00:45]} 61. Rxh6 {[%clk 0:00:02]}  g1=Q {[%clk 0:00:46]} 62. Rg6 {[%clk 0:00:03]} 0-1


[Site "https://www.chess.com"]

[Event "Titled Tuesday Blitz November 15 Late 2022"]
[White "Figorito, Nick"]
[Black "Vlassov, Nikolai"]
[WhiteFideId "30923689"]
[BlackFideId "4103360"]
[WhiteElo "2345"]
[BlackElo "2324"]
[Result "1-0"]
[Round "10"]
[TimeControl "180+1"]
[Date "2022.11.16"]
[WhiteClock "0:00:13"]
[BlackClock "0:00:01"]

1. Nf3 {[%clk 0:03:00]}  c5 {[%clk 0:02:59]} 2. g3 {[%clk 0:03:00]}  Nc6 {[%clk 0:02:58]} 3. d4 {[%clk 0:03:00]}  cxd4 {[%clk 0:02:57]} 4. Nxd4 {[%clk 0:03:01]}  Qa5+ {[%clk 0:02:57]} 5. c3 {[%clk 0:02:51]}  Nf6 {[%clk 0:02:48]} 6. Bg2 {[%clk 0:02:50]}  h5 {[%clk 0:02:44]} 7. h4 {[%clk 0:02:47]}  e5 {[%clk 0:02:40]} 8. Nxc6 {[%clk 0:02:45]}  dxc6 {[%clk 0:02:40]} 9. O-O {[%clk 0:02:42]}  Bg4 {[%clk 0:02:36]} 10. b4 {[%clk 0:02:20]}  Qa6 {[%clk 0:02:32]} 11. Re1 {[%clk 0:02:14]}  Rd8 {[%clk 0:02:27]} 12. Nd2 {[%clk 0:02:12]}  Be7 {[%clk 0:02:24]} 13. a4 {[%clk 0:02:05]}  O-O {[%clk 0:02:22]} 14. Qc2 {[%clk 0:01:58]}  Rd7 {[%clk 0:01:59]} 15. Nb3 {[%clk 0:01:55]}  Rfd8 {[%clk 0:01:56]} 16. Be3 {[%clk 0:01:54]}  Qc4 {[%clk 0:01:47]} 17. Bxa7 {[%clk 0:01:41]}  Bxb4 {[%clk 0:01:43]} 18. Rac1 {[%clk 0:01:18]}  Bf8 {[%clk 0:01:32]} 19. Bb6 {[%clk 0:01:14]}  Re8 {[%clk 0:01:29]} 20. a5 {[%clk 0:01:13]}  Nd5 {[%clk 0:01:21]} 21. Nd2 {[%clk 0:01:07]}  Qa6 {[%clk 0:01:17]} 22. Ne4 {[%clk 0:00:58]}  Nxb6 {[%clk 0:01:13]} 23. axb6 {[%clk 0:00:59]}  Qxb6 {[%clk 0:01:14]} 24. Ng5 {[%clk 0:00:59]}  g6 {[%clk 0:01:10]} 25. Ne4 {[%clk 0:00:59]}  Kg7 {[%clk 0:01:02]} 26. Rb1 {[%clk 0:00:57]}  Qc7 {[%clk 0:01:01]} 27. Qb2 {[%clk 0:00:54]}  Red8 {[%clk 0:00:59]} 28. c4 {[%clk 0:00:45]}  Bf5 {[%clk 0:00:46]} 29. Rbc1 {[%clk 0:00:43]}  Bxe4 {[%clk 0:00:45]} 30. Bxe4 {[%clk 0:00:44]}  Bc5 {[%clk 0:00:45]} 31. Qc3 {[%clk 0:00:36]}  Kg8 {[%clk 0:00:37]} 32. Qf3 {[%clk 0:00:32]}  f5 {[%clk 0:00:36]} 33. Bxf5 {[%clk 0:00:29]}  gxf5 {[%clk 0:00:36]} 34. Qxf5 {[%clk 0:00:30]}  Rg7 {[%clk 0:00:31]} 35. e3 {[%clk 0:00:28]}  Qf7 {[%clk 0:00:15]} 36. Qxe5 {[%clk 0:00:26]}  Bd6 {[%clk 0:00:16]} 37. Qe4 {[%clk 0:00:20]}  Re8 {[%clk 0:00:11]} 38. Qg2 {[%clk 0:00:19]}  Re6 {[%clk 0:00:09]} 39. c5 {[%clk 0:00:19]}  Bc7 {[%clk 0:00:09]} 40. Rb1 {[%clk 0:00:20]}  Reg6 {[%clk 0:00:08]} 41. Rxb7 {[%clk 0:00:20]}  Qc4 {[%clk 0:00:07]} 42. Rxc7 {[%clk 0:00:16]}  Rxc7 {[%clk 0:00:06]} 43. Rd1 {[%clk 0:00:15]}  Qxc5 {[%clk 0:00:05]} 44. Rd8+ {[%clk 0:00:15]}  Kh7 {[%clk 0:00:04]} 45. Qe4 {[%clk 0:00:14]}  Rg7 {[%clk 0:00:04]} 46. Kh2 {[%clk 0:00:13]}  Qe7 {[%clk 0:00:01]} 47. Qxe7 {[%clk 0:00:13]} 1-0


[Site "https://www.chess.com"]

[Event "Titled Tuesday Blitz November 15 Late 2022"]
[White "Garcia Pantoja, Roberto"]
[Black "Sarana, Alexey"]
[WhiteFideId "3509265"]
[BlackFideId "24133795"]
[WhiteElo "2524"]
[BlackElo "2708"]
[Result "0-1"]
[Round "10"]
[TimeControl "180+1"]
[Date "2022.11.15"]
[WhiteClock "0:01:28"]
[BlackClock "0:02:10"]

1. e4 {[%clk 0:02:52]}  c5 {[%clk 0:02:59]} 2. Nf3 {[%clk 0:02:52]}  d6 {[%clk 0:03:00]} 3. d4 {[%clk 0:02:52]}  cxd4 {[%clk 0:03:01]} 4. Nxd4 {[%clk 0:02:53]}  Nf6 {[%clk 0:03:02]} 5. Nc3 {[%clk 0:02:53]}  a6 {[%clk 0:03:02]} 6. Bg5 {[%clk 0:02:53]}  e6 {[%clk 0:03:01]} 7. f4 {[%clk 0:02:53]}  Qb6 {[%clk 0:03:01]} 8. Qd3 {[%clk 0:02:52]}  Qxb2 {[%clk 0:03:00]} 9. Rb1 {[%clk 0:02:52]}  Qa3 {[%clk 0:03:01]} 10. f5 {[%clk 0:02:52]}  Qc5 {[%clk 0:02:50]} 11. Bxf6 {[%clk 0:02:36]}  gxf6 {[%clk 0:02:50]} 12. Be2 {[%clk 0:02:36]}  Nc6 {[%clk 0:02:50]} 13. Nxc6 {[%clk 0:02:36]}  bxc6 {[%clk 0:02:43]} 14. Rf1 {[%clk 0:02:11]}  Be7 {[%clk 0:02:32]} 15. Rb3 {[%clk 0:02:07]}  d5 {[%clk 0:02:23]} 16. fxe6 {[%clk 0:02:05]}  fxe6 {[%clk 0:02:22]} 17. Bh5+ {[%clk 0:02:02]}  Kd8 {[%clk 0:02:22]} 18. Qg3 {[%clk 0:01:59]}  d4 {[%clk 0:02:17]} 19. Na4 {[%clk 0:01:33]}  Qa5+ {[%clk 0:02:12]} 20. Kd1 {[%clk 0:01:28]}  Qxh5+ {[%clk 0:02:10]} 0-1


[Site "https://www.chess.com"]

[Event "Titled Tuesday Blitz November 15 Late 2022"]
[White "Gerbelli Neto, Eduardo"]
[Black "Hoffmann, Asa"]
[WhiteFideId "2103281"]
[BlackFideId "2001470"]
[WhiteElo "2178"]
[BlackElo "2117"]
[Result "1-0"]
[Round "10"]
[TimeControl "180+1"]
[Date "2022.11.16"]
[WhiteClock "0:00:14"]
[BlackClock "0:01:05"]

1. e4 {[%clk 0:02:56]}  d6 {[%clk 0:02:58]} 2. Nc3 {[%clk 0:02:55]}  c6 {[%clk 0:02:57]} 3. d4 {[%clk 0:02:54]}  Nf6 {[%clk 0:02:56]} 4. Bd3 {[%clk 0:02:54]}  e5 {[%clk 0:02:56]} 5. Nge2 {[%clk 0:02:51]}  Be6 {[%clk 0:02:53]} 6. f3 {[%clk 0:02:51]}  Be7 {[%clk 0:02:53]} 7. Be3 {[%clk 0:02:51]}  b5 {[%clk 0:02:52]} 8. g4 {[%clk 0:02:44]}  a6 {[%clk 0:02:51]} 9. Ng3 {[%clk 0:02:44]}  g6 {[%clk 0:02:50]} 10. g5 {[%clk 0:02:42]}  Nh5 {[%clk 0:02:39]} 11. Nxh5 {[%clk 0:02:40]}  gxh5 {[%clk 0:02:39]} 12. h4 {[%clk 0:02:29]}  Qb6 {[%clk 0:02:32]} 13. Ne2 {[%clk 0:02:26]}  c5 {[%clk 0:02:30]} 14. d5 {[%clk 0:02:12]}  Bc8 {[%clk 0:02:23]} 15. Qd2 {[%clk 0:01:58]}  Nd7 {[%clk 0:02:22]} 16. c4 {[%clk 0:01:52]}  Rb8 {[%clk 0:02:09]} 17. b3 {[%clk 0:01:50]}  Nf8 {[%clk 0:02:01]} 18. Ng3 {[%clk 0:01:49]}  Ng6 {[%clk 0:02:01]} 19. Nxh5 {[%clk 0:01:47]}  Bd7 {[%clk 0:01:59]} 20. f4 {[%clk 0:01:36]}  bxc4 {[%clk 0:01:54]} 21. Bxc4 {[%clk 0:01:34]}  exf4 {[%clk 0:01:50]} 22. Bxf4 {[%clk 0:01:32]}  Bg4 {[%clk 0:01:48]} 23. Ng7+ {[%clk 0:01:29]}  Kf8 {[%clk 0:01:45]} 24. Nf5 {[%clk 0:01:29]}  Bxf5 {[%clk 0:01:42]} 25. exf5 {[%clk 0:01:29]}  Nxf4 {[%clk 0:01:40]} 26. Qxf4 {[%clk 0:01:29]}  f6 {[%clk 0:01:39]} 27. O-O-O {[%clk 0:01:15]}  Qb4 {[%clk 0:01:36]} 28. Rd3 {[%clk 0:00:46]}  a5 {[%clk 0:01:36]} 29. Re3 {[%clk 0:00:43]}  a4 {[%clk 0:01:35]} 30. Rxe7 {[%clk 0:00:33]}  Qc3+ {[%clk 0:01:34]} 31. Kb1 {[%clk 0:00:32]}  a3 {[%clk 0:01:32]} 32. Re2 {[%clk 0:00:25]}  Kf7 {[%clk 0:01:23]} 33. g6+ {[%clk 0:00:24]}  hxg6 {[%clk 0:01:21]} 34. fxg6+ {[%clk 0:00:25]}  Kg7 {[%clk 0:01:20]} 35. h5 {[%clk 0:00:17]}  Rhe8 {[%clk 0:01:19]} 36. h6+ {[%clk 0:00:17]}  Kg8 {[%clk 0:01:19]} 37. h7+ {[%clk 0:00:13]}  Kh8 {[%clk 0:01:18]} 38. Rhe1 {[%clk 0:00:11]}  Qxe1+ {[%clk 0:01:15]} 39. Rxe1 {[%clk 0:00:11]}  Rxe1+ {[%clk 0:01:15]} 40. Kc2 {[%clk 0:00:12]}  Kg7 {[%clk 0:01:14]} 41. Qxd6 {[%clk 0:00:12]}  Rbe8 {[%clk 0:01:14]} 42. Qd7+ {[%clk 0:00:09]}  Kxg6 {[%clk 0:01:14]} 43. Qg4+ {[%clk 0:00:08]}  Kxh7 {[%clk 0:01:13]} 44. d6 {[%clk 0:00:09]}  f5 {[%clk 0:01:12]} 45. Qxf5+ {[%clk 0:00:09]}  Kg7 {[%clk 0:01:11]} 46. Qf7+ {[%clk 0:00:09]}  Kh6 {[%clk 0:01:11]} 47. Bd3 {[%clk 0:00:10]}  R8e6 {[%clk 0:01:09]} 48. Qh7+ {[%clk 0:00:10]}  Kg5 {[%clk 0:01:09]} 49. Qf5+ {[%clk 0:00:10]}  Kh4 {[%clk 0:01:08]} 50. d7 {[%clk 0:00:11]}  Rd6 {[%clk 0:01:08]} 51. Qf2+ {[%clk 0:00:10]}  Kg5 {[%clk 0:01:07]} 52. Qxe1 {[%clk 0:00:11]}  Rxd7 {[%clk 0:01:07]} 53. Qe6 {[%clk 0:00:11]}  Rd4 {[%clk 0:01:06]} 54. Qe5+ {[%clk 0:00:11]}  Kg4 {[%clk 0:01:06]} 55. Qxc5 {[%clk 0:00:12]}  Rf4 {[%clk 0:01:06]} 56. Qc4 {[%clk 0:00:12]}  Kf3 {[%clk 0:01:05]} 57. Qxf4+ {[%clk 0:00:12]}  Kxf4 {[%clk 0:01:05]} 58. Kc3 {[%clk 0:00:13]}  Ke5 {[%clk 0:01:05]} 59. Kb4 {[%clk 0:00:14]} 1-0


[Site "https://www.chess.com"]

[Event "Titled Tuesday Blitz November 15 Late 2022"]
[White "Goryachkina, Aleksandra"]
[Black "Salman, Pavel"]
[WhiteFideId "4147103"]
[BlackFideId "24153753"]
[WhiteElo "2484"]
[BlackElo "2187"]
[Result "1-0"]
[Round "10"]
[TimeControl "180+1"]
[Date "2022.11.16"]
[WhiteClock "0:00:41"]
[BlackClock "0:00:02"]

1. e4 {[%clk 0:02:59]}  c5 {[%clk 0:03:00]} 2. Nf3 {[%clk 0:02:59]}  e6 {[%clk 0:03:00]} 3. g3 {[%clk 0:02:58]}  d6 {[%clk 0:02:59]} 4. Bg2 {[%clk 0:02:58]}  Nf6 {[%clk 0:02:57]} 5. Qe2 {[%clk 0:02:54]}  Be7 {[%clk 0:02:57]} 6. O-O {[%clk 0:02:54]}  O-O {[%clk 0:02:57]} 7. c3 {[%clk 0:02:53]}  b6 {[%clk 0:02:36]} 8. Rd1 {[%clk 0:02:47]}  Ba6 {[%clk 0:02:36]} 9. d3 {[%clk 0:02:39]}  Nbd7 {[%clk 0:02:35]} 10. a4 {[%clk 0:02:36]}  Ne5 {[%clk 0:02:31]} 11. Na3 {[%clk 0:02:25]}  Nxf3+ {[%clk 0:02:16]} 12. Qxf3 {[%clk 0:02:22]}  Nd7 {[%clk 0:02:01]} 13. d4 {[%clk 0:02:21]}  cxd4 {[%clk 0:01:52]} 14. cxd4 {[%clk 0:02:21]}  Rc8 {[%clk 0:01:52]} 15. Be3 {[%clk 0:02:17]}  Bb7 {[%clk 0:01:48]} 16. Qe2 {[%clk 0:02:14]}  a6 {[%clk 0:01:48]} 17. d5 {[%clk 0:02:01]}  exd5 {[%clk 0:01:44]} 18. exd5 {[%clk 0:02:01]}  Bf6 {[%clk 0:01:44]} 19. Rac1 {[%clk 0:01:46]}  Re8 {[%clk 0:01:36]} 20. b4 {[%clk 0:01:19]}  Ne5 {[%clk 0:01:26]} 21. h3 {[%clk 0:01:13]}  Qd7 {[%clk 0:01:18]} 22. b5 {[%clk 0:01:10]}  axb5 {[%clk 0:00:59]} 23. Qxb5 {[%clk 0:01:09]}  Ra8 {[%clk 0:00:42]} 24. Qxd7 {[%clk 0:01:03]}  Nxd7 {[%clk 0:00:43]} 25. Nb5 {[%clk 0:01:03]}  Rxa4 {[%clk 0:00:15]} 26. Nxd6 {[%clk 0:01:03]}  Rb8 {[%clk 0:00:16]} 27. Nxb7 {[%clk 0:01:03]}  Rxb7 {[%clk 0:00:17]} 28. Rc8+ {[%clk 0:01:02]}  Nf8 {[%clk 0:00:17]} 29. d6 {[%clk 0:01:02]}  Rba7 {[%clk 0:00:11]} 30. d7 {[%clk 0:00:54]}  Ra1 {[%clk 0:00:08]} 31. d8=Q {[%clk 0:00:52]}  Bxd8 {[%clk 0:00:08]} 32. Rxd8 {[%clk 0:00:51]}  Rxd1+ {[%clk 0:00:08]} 33. Rxd1 {[%clk 0:00:52]}  g6 {[%clk 0:00:05]} 34. Rd8 {[%clk 0:00:50]}  Rd7 {[%clk 0:00:05]} 35. Rb8 {[%clk 0:00:48]}  Rd1+ {[%clk 0:00:04]} 36. Kh2 {[%clk 0:00:48]}  Kg7 {[%clk 0:00:05]} 37. Bxb6 {[%clk 0:00:45]}  Ne6 {[%clk 0:00:05]} 38. Be3 {[%clk 0:00:45]}  h5 {[%clk 0:00:05]} 39. h4 {[%clk 0:00:44]}  Kf6 {[%clk 0:00:05]} 40. Bh3 {[%clk 0:00:44]}  Rd6 {[%clk 0:00:02]} 41. Kg2 {[%clk 0:00:42]}  Kg7 {[%clk 0:00:02]} 42. Bxe6 {[%clk 0:00:40]}  Rxe6 {[%clk 0:00:02]} 43. Bd4+ {[%clk 0:00:41]} 1-0


[Site "https://www.chess.com"]